bitfinex/quotes_ETHUSD_20260203
["timestamp","ask_amount","ask_price","bid_price","bid_amount"]
[1770148682993,0.00684759,2212.6,2212.4,0.001]
[1770148683149,0.00684759,2212.6,2212.1,14.1702288]
[1770148683150,0.00684759,2212.5,2212.1,0.001]
[1770148683345,0.00684759,2212.5,2211.9,0.001]
[1770148683346,0.00684759,2212.2,2211.9,0.001]
[1770148683573,0.00684759,2212.2,2212.0,1.4702609]
[1770148683985,0.708,2213.0,2211.9,13.001]
[1770148684194,0.00684759,2212.5,2211.9,13.001]
[1770148684348,0.00684759,2212.6,2211.9,13.001]
[1770148684885,0.00684759,2213.0,2211.9,14.3011]
[1770148685654,0.00684759,2213.2,2211.9,14.3011]
[1770148685846,0.00684759,2212.9,2211.9,14.3011]
[1770148686051,0.00684759,2212.9,2212.0,0.93315667]
[1770148686278,0.00684759,2212.9,2212.0,13.0]
[1770148686279,0.00684759,2212.8,2212.0,13.0]
[1770148686616,0.00684759,2213.3,2212.2,13.0]
[1770148686755,0.00684759,2213.3,2212.4,13.0]
[1770148686948,0.00684759,2214.2,2212.6,13.0]
[1770148687148,0.00684759,2213.9,2212.8,13.0]
[1770148687353,0.00684759,2213.9,2212.9,0.93070866]
[1770148687354,0.00684759,2213.6,2212.9,0.93070866]
[1770148687595,0.00684759,2213.6,2212.5,13.0]
[1770148687596,0.00684759,2213.3,2212.5,13.0]
[1770148687777,0.00684759,2213.5,2212.0,15.43029402]
[1770148687984,0.00684759,2213.3,2212.3,1.13004094]
[1770148688300,0.00684759,2213.3,2212.2,13.0]
[1770148688301,0.00684759,2213.3,2212.4,13.0]
[1770148688597,0.00684759,2213.3,2212.5,13.93139111]
[1770148688764,0.00684759,2213.6,2212.7,13.0]
[1770148688967,0.00684759,2214.4,2212.7,13.0]
[1770148688968,0.00684759,2214.2,2212.8,0.93041942]
[1770148689159,0.00684759,2214.0,2213.0,13.0]
[1770148689358,0.00684759,2214.2,2213.0,13.0]
[1770148689576,0.00684759,2214.2,2213.2,13.0]
[1770148689760,0.00684759,2214.5,2213.4,13.0]
[1770148689958,0.00684759,2214.1,2213.5,13.0]
[1770148690197,0.00684759,2214.0,2213.5,13.0]
[1770148690358,0.00684759,2214.0,2213.3,13.947]
[1770148690559,0.00684759,2214.4,2213.3,13.947]
[1770148690792,0.00684759,2214.3,2213.3,13.947]
[1770148690963,0.00684759,2214.2,2213.3,13.947]
[1770148691164,0.00684759,2214.2,2213.5,13.0]
[1770148691363,0.00684759,2214.1,2213.5,13.0]
[1770148691604,0.00684759,2214.1,2212.5,4.51971735]
[1770148691605,0.00684759,2213.7,2213.1,13.0]
[1770148691898,0.00684759,2213.6,2213.1,13.0]
[1770148692101,0.00684759,2213.8,2213.1,13.0]
[1770148692307,0.00684759,2213.9,2213.1,14.43930419]
[1770148692516,0.00684759,2213.9,2212.9,1.39304194]
[1770148692517,0.00684759,2213.6,2212.9,1.39304194]
[1770148692722,0.00684759,2213.6,2212.8,0.947]
[1770148692723,0.00684759,2214.6,2213.1,13.0]
[1770148692991,0.00684759,2214.6,2213.3,13.0]
[1770148693205,0.00684759,2214.6,2213.5,13.0]
[1770148694090,0.00684759,2214.2,2213.5,13.0]
[1770148694883,0.00684759,2214.3,2213.5,13.0]
[1770148695099,0.00684759,2214.3,2213.5,14.3]
[1770148695412,0.00684759,2214.3,2213.2,0.947]
[1770148695413,0.00684759,2213.8,2213.2,0.947]
[1770148695818,0.00684759,2213.8,2213.1,13.0]
[1770148696181,0.00684759,2213.9,2213.1,13.0]
[1770148696807,0.00684759,2213.8,2213.1,13.0]
[1770148696998,0.00684759,2213.8,2213.1,14.51162288]
[1770148697313,0.00684759,2213.8,2213.2,13.0]
[1770148697881,0.00684759,2213.7,2213.2,13.0]
[1770148698082,0.00684759,2213.4,2212.8,13.0]
[1770148698523,0.00684759,2213.5,2212.8,13.0]
[1770148698714,0.00684759,2213.5,2212.8,14.3]
[1770148699298,0.00684759,2213.5,2212.9,0.93360948]
[1770148699496,0.00684759,2213.5,2212.8,14.3]
[1770148699789,0.00684759,2213.5,2212.8,13.0]
[1770148700278,0.00684759,2213.5,2212.9,0.93281056]
[1770148700483,0.00684759,2213.5,2212.8,13.0]
[1770148701185,0.00684759,2213.6,2212.9,0.93425864]
[1770148701380,0.00684759,2213.8,2212.8,13.0]
[1770148701684,0.00684759,2213.7,2212.9,13.93415279]
[1770148701890,0.00684759,2213.7,2212.9,13.0]
[1770148702309,0.00684759,2213.7,2213.0,0.93524457]
[1770148702511,0.00684759,2213.6,2212.9,13.0]
[1770148702727,0.00684759,2213.6,2213.0,0.93626908]
[1770148702933,0.00684759,2213.6,2212.9,13.0]
[1770148703105,0.00684759,2213.6,2212.5,1.55981772]
[1770148703106,0.00684759,2213.0,2212.5,13.0]
[1770148703426,0.00684759,2213.1,2212.6,0.93786768]
[1770148703627,0.00684759,2213.1,2212.5,13.0]
[1770148703931,0.00684759,2213.1,2212.6,0.93911588]
[1770148704228,0.00684759,2213.1,2212.7,0.94024304]
[1770148704399,0.00684759,2213.1,2212.5,13.0]
[1770148704600,0.00684759,2213.2,2212.6,0.9403926]
[1770148704827,0.00684759,2213.2,2212.7,0.9403926]
[1770148705032,0.00684759,2213.2,2212.5,13.0]
[1770148705198,0.00684759,2213.2,2212.6,0.9396636]
[1770148705403,0.00684759,2213.4,2212.5,14.1692288]
[1770148705404,0.00684759,2213.4,2212.7,0.9396636]
[1770148705602,0.00684759,2213.3,2212.8,0.9396636]
[1770148705824,0.00684759,2213.3,2212.5,13.0]
[1770148705825,0.00684759,2213.3,2212.5,14.1692288]
[1770148706053,0.00684759,2213.3,2212.6,0.94035833]
[1770148706232,0.70684759,2213.8,2212.7,15.10958713]
[1770148706532,0.00684759,2213.4,2212.8,0.94035833]
[1770148707323,0.00684759,2213.4,2212.9,0.94035833]
[1770148707628,0.00684759,2213.4,2212.6,1.1692288]
[1770148707629,0.00684759,2213.0,2212.6,1.1692288]
[1770148708127,0.00684759,2213.1,2212.6,1.1692288]
[1770148709229,0.00684759,2213.0,2212.9,0.001]
[1770148710412,0.6991,2214.0,2212.9,0.001]
[1770148710616,0.00684759,2213.4,2212.9,0.001]
[1770148711233,0.00684759,2213.3,2212.9,0.001]
[1770148711922,0.00684759,2213.2,2212.9,0.001]
[1770148712135,0.00684759,2213.1,2212.9,0.001]
[1770148712504,0.00684759,2213.1,2212.7,1.17968626]
[1770148712831,0.00684759,2212.7,2212.4,1.18533566]
[1770148713136,0.00684759,2212.8,2212.2,1.56081772]
[1770148713440,0.00684759,2212.5,2212.2,0.001]
[1770148713800,0.00684759,2212.6,2212.2,0.001]
[1770148714209,0.00684759,2212.5,2212.2,0.001]
[1770148714531,0.00684759,2212.8,2212.2,0.001]
[1770148715037,0.00684759,2212.7,2212.2,0.001]
[1770148715406,0.00684759,2213.3,2212.2,13.001]
[1770148715602,0.01,2213.2,2212.4,13.0]
[1770148715807,0.01,2213.4,2212.7,13.0]
[1770148716111,0.00794759,2213.7,2212.7,13.0]
[1770148716112,0.01,2213.6,2212.7,14.55981772]
[1770148716456,0.00684759,2213.1,2212.6,1.55981772]
[1770148716744,0.00684759,2213.1,2212.3,13.0]
[1770148716745,0.00684759,2212.8,2212.3,13.0]
[1770148716938,0.00684759,2212.7,2212.3,13.0]
[1770148717136,0.00684759,2212.7,2212.2,1.56081772]
[1770148717137,0.00684759,2212.7,2212.2,0.001]
[1770148717919,0.00684759,2212.5,2212.2,0.001]
[1770148718441,0.00684759,2212.6,2212.2,0.001]
[1770148718644,0.00684759,2212.5,2212.2,0.001]
[1770148718943,0.00684759,2212.6,2212.2,0.001]
[1770148719126,0.00684759,2212.5,2212.2,0.001]
[1770148720027,0.00684759,2212.5,2211.9,0.001]
[1770148720028,0.00684759,2212.3,2211.9,0.001]
[1770148720365,0.00684759,2212.4,2211.9,0.001]
[1770148720523,0.00684759,2212.4,2212.0,0.94869846]
[1770148720720,0.00684759,2212.2,2211.9,0.001]
[1770148721539,0.00684759,2212.3,2211.9,0.002]
[1770148721718,0.00684759,2212.6,2212.0,0.001]
[1770148722059,0.00684759,2212.2,2211.9,0.001]
[1770148722413,0.00684759,2212.6,2211.9,0.002]
[1770148722613,0.00684759,2213.1,2212.0,13.94645121]
[1770148722814,0.00684759,2213.1,2212.1,13.94745121]
[1770148722815,0.00684759,2212.7,2212.1,13.94745121]
[1770148723116,0.00684759,2212.7,2212.2,0.94645121]
[1770148723117,0.0011,2212.5,2212.2,0.94645121]
[1770148723317,0.0011,2212.5,2212.2,0.94745121]
[1770148723542,0.0011,2212.5,2212.3,0.94645121]
[1770148723731,0.0011,2212.5,2212.2,0.001]
[1770148723918,0.0011,2212.5,2212.3,0.94809627]
[1770148724252,0.0011,2212.5,2212.2,0.001]
[1770148724459,0.0011,2212.5,2212.3,0.94836231]
[1770148724626,0.0011,2212.5,2212.2,0.001]
[1770148724826,0.0011,2212.5,2212.3,0.94768845]
[1770148725151,0.0011,2212.5,2212.4,0.94768845]
[1770148725348,0.0011,2212.5,2212.3,0.94768845]
[1770148725555,0.00684759,2213.1,2212.4,13.94768845]
[1770148725722,0.00684759,2213.2,2212.6,12.99945]
[1770148725922,0.00684759,2213.2,2212.7,0.94868845]
[1770148726124,0.00684759,2213.3,2212.8,0.94768845]
[1770148726318,0.00684759,2213.3,2212.7,0.001]
[1770148726319,0.01794759,2213.6,2212.9,0.94768845]
[1770148726620,0.01794759,2213.6,2213.0,0.94768845]
[1770148726933,0.00684759,2213.4,2213.1,0.94768845]
[1770148727263,0.00684759,2213.4,2212.7,1.56081772]
[1770148727264,0.00684759,2213.3,2213.2,0.94756673]
[1770148727469,0.00684759,2213.3,2211.9,0.001]
[1770148727470,0.00684759,2212.5,2211.9,0.001]
[1770148727624,0.00684759,2212.5,2211.7,12.29196666]
[1770148727625,0.00684759,2212.0,2211.7,12.29196666]
[1770148727820,0.00684759,2212.1,2211.7,12.29196666]
[1770148728474,0.00684759,2212.2,2211.7,12.29196666]
[1770148728678,0.00684759,2211.9,2211.5,0.001]
[1770148728963,0.00684759,2211.9,2211.5,0.002]
[1770148729928,0.00684759,2212.1,2211.5,0.002]
[1770148730339,0.00684759,2211.6,2211.5,0.001]
[1770148730755,0.00684759,2211.6,2211.0,0.001]
[1770148730930,0.00684759,2211.6,2210.5,12.64598333]
[1770148730931,0.00684759,2211.2,2210.5,12.64598333]
[1770148731131,0.00684759,2211.5,2210.5,13.91058166]
[1770148731358,0.00684759,2212.0,2210.7,12.64648333]
[1770148731528,0.00684759,2212.2,2210.9,13.77720323]
[1770148731969,0.00684759,2212.4,2210.9,13.77720323]
[1770148731970,0.00684759,2212.4,2211.1,12.64648333]
[1770148732272,0.00684759,2211.9,2211.1,12.64648333]
[1770148732485,0.00684759,2212.2,2211.3,12.64648333]
[1770148732788,0.00684759,2211.8,2211.4,0.001]
[1770148733380,0.00684759,2212.7,2211.4,12.64748333]
[1770148733559,0.00684759,2212.1,2211.4,12.64748333]
[1770148733954,0.00684759,2212.0,2211.4,12.64748333]
[1770148735690,0.00684759,2211.7,2211.0,12.64648333]
[1770148735847,0.00684759,2211.5,2211.0,12.64648333]
[1770148736048,0.00684759,2211.2,2210.6,12.64648333]
[1770148736247,0.00684759,2211.2,2210.6,12.64748333]
[1770148736695,0.00684759,2211.1,2210.6,12.64748333]
[1770148736852,0.00684759,2211.1,2211.0,0.001]
[1770148737054,0.00684759,2211.3,2211.0,0.001]
[1770148738285,0.00684759,2211.9,2211.0,0.002]
[1770148738456,0.00684759,2211.2,2211.0,0.001]
[1770148739152,0.00684759,2211.4,2211.0,0.001]
[1770148739353,0.00684759,2211.5,2211.0,0.002]
[1770148739764,0.00684759,2211.4,2211.0,0.002]
[1770148739973,0.00684759,2211.3,2211.0,0.001]
[1770148740366,0.00684759,2211.1,2211.0,0.001]
[1770148740562,0.00684759,2211.1,2210.4,12.64648333]
[1770148740762,0.00684759,2210.6,2210.5,0.001]
[1770148741108,0.00684759,2210.9,2210.2,0.001]
[1770148741109,0.00684759,2210.9,2210.3,12.64798333]
[1770148741665,0.00684759,2210.8,2210.3,12.64798333]
[1770148741865,0.00684759,2210.8,2210.3,0.001]
[1770148742100,0.00684759,2210.7,2210.2,0.001]
[1770148742285,0.00684759,2210.6,2210.2,0.002]
[1770148742671,0.00684759,2210.5,2210.2,0.002]
[1770148742979,0.00684759,2210.6,2210.1,0.001]
[1770148743166,0.00684759,2210.7,2210.1,12.64898333]
[1770148743367,0.00684759,2211.2,2210.1,13.91398166]
[1770148743584,0.00684759,2211.4,2210.3,12.64798333]
[1770148743763,0.00684759,2211.4,2210.1,1.26599833]
[1770148743764,0.01684759,2211.6,2210.5,12.64798333]
[1770148743968,0.01,2211.6,2210.7,12.64798333]
[1770148744165,0.01,2211.8,2210.9,12.64798333]
[1770148744384,0.01,2211.8,2210.4,0.948]
[1770148744385,0.32005727,2211.9,2211.0,14.95134493]
[1770148744674,0.32005727,2211.9,2211.2,12.64798333]
[1770148745494,0.17162141,2211.9,2211.2,12.64798333]
[1770148745802,0.17162141,2211.9,2211.4,12.64798333]
[1770148746126,0.00684759,2211.4,2211.0,12.64798333]
[1770148746489,0.00684759,2211.3,2210.6,12.64798333]
[1770148746690,0.00684759,2211.2,2210.6,12.64798333]
[1770148746867,0.00684759,2210.8,2210.2,12.64798333]
[1770148747065,0.00684759,2211.2,2210.2,12.64798333]
[1770148747066,0.31647841,2211.8,2210.3,13.59624992]
[1770148747265,0.31647841,2211.8,2210.5,12.64798333]
[1770148747475,0.31647841,2211.8,2210.2,1.26499833]
[1770148747476,0.00684759,2211.4,2210.7,12.64798333]
[1770148747906,0.00684759,2211.3,2210.7,12.64798333]
[1770148748103,0.00684759,2211.4,2210.7,12.64798333]
[1770148748304,0.31647841,2211.8,2210.8,13.59583118]
[1770148748504,0.00684759,2211.2,2210.4,13.59598333]
[1770148748719,0.00684759,2211.2,2210.5,0.94760405]
[1770148748875,0.00684759,2211.2,2210.4,12.64798333]
[1770148748876,0.00684759,2210.9,2210.4,12.64798333]
[1770148749076,0.00684759,2210.8,2210.1,0.001]
[1770148749288,0.00684759,2210.8,2210.2,0.94832439]
[1770148749498,0.00684759,2210.8,2210.1,12.64898333]
[1770148749702,0.00684759,2211.2,2210.2,13.59648913]
[1770148749901,0.00684759,2211.2,2210.6,0.001]
[1770148750078,0.00684759,2211.0,2210.6,0.001]
[1770148750274,0.00684759,2210.7,2210.2,12.64798333]
[1770148750907,0.00684759,2210.8,2210.2,12.64798333]
[1770148751087,0.00684759,2210.9,2210.2,12.64798333]
[1770148751809,0.00684759,2211.6,2210.3,13.59810682]
[1770148751983,0.00684759,2211.6,2210.4,0.94924095]
[1770148752185,0.00684759,2211.6,2210.3,12.64848333]
[1770148752386,0.00684759,2211.6,2210.5,12.64848333]
[1770148752585,0.00684759,2211.6,2210.1,12.64948333]
[1770148752586,0.00684759,2210.7,2210.1,12.64948333]
[1770148752787,0.00684759,2210.7,2209.4,1.1314971]
[1770148752788,0.00684759,2209.9,2209.2,12.64948333]
[1770148753089,0.00684759,2211.1,2209.4,12.64948333]
[1770148753276,0.01,2210.6,2209.6,12.64948333]
[1770148753481,0.01,2211.0,2209.8,12.64948333]
[1770148753681,0.01,2211.0,2210.0,12.64948333]
[1770148753887,0.01684759,2211.3,2210.2,12.64948333]
[1770148754089,0.01,2211.3,2210.4,12.64948333]
[1770148754315,0.01,2211.3,2210.5,13.59877242]
[1770148754615,0.00794759,2211.7,2210.5,12.64948333]
[1770148754616,0.00684759,2211.0,2210.5,12.64948333]
[1770148754811,0.00684759,2210.9,2210.1,14.00936057]
[1770148755042,0.00684759,2210.9,2210.2,0.94652247]
[1770148755219,0.00684759,2210.9,2210.3,0.94652247]
[1770148755411,0.00684759,2210.7,2209.7,13.59848333]
[1770148755612,0.00684759,2210.8,2209.8,13.59716759]
[1770148755812,0.00684759,2210.7,2210.0,12.64948333]
[1770148756009,0.00684759,2211.1,2210.0,12.64948333]
[1770148756230,0.00684759,2211.0,2210.0,12.64948333]
[1770148756400,0.00684759,2210.7,2210.0,12.64948333]
[1770148756598,0.00684759,2210.5,2210.0,12.64948333]
[1770148757331,0.00684759,2210.3,2209.5,12.64948333]
[1770148757547,0.00684759,2210.3,2209.1,2.37401749]
[1770148757548,0.00684759,2209.8,2209.1,0.001]
[1770148757700,0.00684759,2209.8,2209.2,0.94932219]
[1770148757895,0.00684759,2209.8,2209.3,0.94932219]
[1770148758126,0.00684759,2209.8,2209.1,0.001]
[1770148758333,0.00684759,2209.8,2209.2,0.94945639]
[1770148758521,0.00684759,2209.8,2208.6,14.23156099]
[1770148758522,0.00684759,2209.4,2208.6,14.23156099]
[1770148758702,0.00684759,2209.3,2208.7,13.59916056]
[1770148758903,0.01,2209.7,2208.9,12.64998333]
[1770148759096,1.25418075,2210.2,2208.7,1.35991606]
[1770148759097,0.01,2209.9,2209.0,13.59916056]
[1770148759431,0.57218075,2210.2,2209.2,12.64998333]
[1770148759432,0.01,2210.0,2209.2,12.64998333]
[1770148759617,0.01684759,2210.0,2209.3,0.94917723]
[1770148759816,0.01684759,2210.0,2209.2,12.64998333]
[1770148760129,0.01,2210.0,2209.3,0.94831409]
[1770148760313,0.01,2210.0,2209.2,14.00988166]
[1770148760512,0.01,2210.0,2209.3,0.94751802]
[1770148760742,0.00684759,2210.1,2209.2,14.00988166]
[1770148760743,0.01,2210.1,2209.2,14.00988166]
[1770148760915,0.01,2210.1,2209.5,12.64998333]
[1770148761116,0.57533316,2210.2,2209.5,14.00969136]
[1770148761654,0.57533316,2210.2,2209.7,12.64998333]
[1770148762604,0.00684759,2210.8,2209.9,12.64998333]
[1770148762605,0.30885827,2210.8,2209.9,12.64998333]
[1770148762802,0.00684759,2211.5,2210.1,12.64998333]
[1770148763015,0.31698554,2211.5,2210.3,12.64998333]
[1770148763233,0.00684759,2211.3,2210.4,0.94581764]
[1770148763419,0.00684759,2211.3,2210.3,12.64998333]
[1770148763622,0.00684759,2211.3,2210.4,13.59373136]
[1770148763929,0.00684759,2211.3,2210.4,12.64998333]
[1770148764109,0.00684759,2211.2,2210.4,14.05093967]
[1770148764315,0.31013795,2211.5,2210.6,12.64998333]
[1770148764647,0.31013795,2211.5,2210.8,12.64998333]
[1770148764806,0.31013795,2211.5,2210.6,0.949]
[1770148764807,0.31013795,2211.5,2211.0,12.64998333]
[1770148765003,0.0011,2211.7,2211.0,14.00934871]
[1770148765200,0.0011,2211.9,2211.2,12.64998333]
[1770148765420,0.0011,2211.9,2211.3,13.5914825]
[1770148765646,0.0011,2211.9,2211.3,12.64998333]
[1770148765942,0.0011,2212.0,2211.5,12.64998333]
[1770148766184,0.0011,2212.0,2211.5,14.0091449]
[1770148766309,0.0011,2212.2,2211.6,13.59161407]
[1770148766502,0.00684759,2213.1,2211.7,13.59106407]
[1770148766700,0.00684759,2213.2,2211.9,12.72674153]
[1770148766933,0.00684759,2212.8,2212.1,12.72674153]
[1770148767749,0.00684759,2212.5,2211.7,12.72674153]
[1770148768051,0.00684759,2212.5,2211.2,12.72674153]
[1770148768052,0.00684759,2212.1,2211.2,12.72674153]
[1770148768227,0.00684759,2212.2,2211.3,0.94135604]
[1770148768539,0.00684759,2212.0,2211.2,12.72674153]
[1770148768732,0.00684759,2211.9,2211.2,12.72674153]
[1770148769128,0.00684759,2212.2,2211.2,12.72674153]
[1770148769528,0.00684759,2211.9,2211.2,12.72674153]
[1770148770250,0.00684759,2212.7,2211.3,0.94439574]
[1770148770555,0.00684759,2212.7,2211.4,12.72674153]
[1770148770556,0.00684759,2212.4,2211.4,12.72674153]
[1770148771190,0.00684759,2212.2,2211.4,12.72674153]
[1770148771353,0.00684759,2212.1,2211.4,12.72674153]
[1770148771534,0.5,2212.2,2211.4,12.72674153]
[1770148773678,0.00684759,2211.8,2211.0,12.72674153]
[1770148773859,0.00684759,2212.0,2211.0,12.72674153]
[1770148774224,0.00684759,2211.6,2210.6,13.90784844]
[1770148774425,0.00684759,2211.6,2210.7,0.94569776]
[1770148774426,0.00684759,2211.5,2210.7,0.94569776]
[1770148774649,0.00684759,2211.5,2210.6,12.72674153]
[1770148774650,0.00684759,2211.1,2210.2,12.72674153]
[1770148774855,0.00684759,2211.1,2210.3,0.94629353]
[1770148775036,0.00684759,2210.9,2210.2,12.72674153]
[1770148775344,0.00684759,2211.0,2210.2,12.72674153]
[1770148777370,0.00684759,2210.9,2209.9,0.001]
[1770148777605,0.00684759,2210.3,2209.9,0.001]
[1770148777878,0.00684759,2210.4,2209.9,0.001]
[1770148778369,0.00684759,2210.6,2209.9,0.001]
[1770148778887,0.00684759,2211.0,2210.0,12.72674153]
[1770148779986,0.00684759,2210.9,2210.0,12.72674153]
[1770148780358,0.00684759,2210.8,2210.0,12.72674153]
[1770148781196,0.00684759,2210.3,2209.9,0.001]
[1770148781558,0.00684759,2210.0,2209.6,0.001]
[1770148781761,0.00684759,2210.2,2209.6,0.001]
[1770148783390,0.00684759,2210.7,2209.6,12.72824153]
[1770148783562,0.00684759,2210.7,2209.7,1.27282415]
[1770148783764,0.00684759,2210.9,2209.7,14.00006568]
[1770148784061,0.46884759,2211.3,2209.9,12.72724153]
[1770148784390,0.00684759,2210.8,2210.0,12.72724153]
[1770148784589,0.00684759,2210.8,2209.7,3.40293106]
[1770148784590,0.00684759,2210.8,2209.7,1.27282415]
[1770148784777,0.00684759,2210.7,2209.8,1.19064118]
[1770148784985,0.00684759,2210.9,2209.8,12.97273464]
[1770148785898,0.00684759,2210.6,2209.8,0.24549311]
[1770148786066,0.00684759,2210.7,2209.6,0.001]
[1770148786271,0.00684759,2210.4,2209.6,0.001]
[1770148786498,0.00684759,2210.5,2209.6,0.001]
[1770148786700,0.00684759,2210.6,2209.6,12.72824153]
[1770148787698,0.00684759,2210.5,2209.6,12.72824153]
[1770148788266,0.00684759,2210.1,2209.6,0.001]
[1770148788471,0.00684759,2210.3,2209.6,0.001]
[1770148788687,0.00684759,2210.2,2209.6,0.001]
[1770148789068,0.00684759,2210.2,2209.8,0.001]
[1770148790371,0.00684759,2210.5,2209.8,0.001]
[1770148790678,0.00684759,2210.4,2209.8,0.001]
[1770148790864,0.00684759,2210.3,2209.8,0.001]
[1770148792185,0.00684759,2210.2,2209.8,0.001]
[1770148792380,0.00684759,2210.2,2208.9,0.001]
[1770148792381,0.00684759,2209.9,2208.9,0.001]
[1770148792586,0.00684759,2209.6,2208.9,0.001]
[1770148792799,0.00684759,2209.7,2208.9,0.001]
[1770148792998,0.00684759,2209.7,2208.9,1.27509017]
[1770148793218,0.00684759,2209.2,2208.9,0.001]
[1770148793376,0.00684759,2209.6,2208.9,0.001]
[1770148794395,0.00684759,2209.8,2208.9,0.001]
[1770148794396,0.67784759,2209.8,2208.9,0.001]
[1770148794808,0.00684759,2209.6,2208.9,0.001]
[1770148795712,0.00684759,2209.6,2208.6,0.001]
[1770148795713,0.00684759,2209.0,2208.6,0.001]
[1770148795881,0.00684759,2209.2,2208.6,0.001]
[1770148796081,0.00684759,2209.3,2208.6,0.001]
[1770148798379,0.00684759,2209.2,2208.6,0.001]
[1770148799002,0.00684759,2209.1,2208.6,0.001]
[1770148799212,0.00684759,2209.1,2207.9,1.18110691]
[1770148799213,0.00684759,2208.7,2207.9,12.72874153]
[1770148799524,0.00684759,2208.6,2207.9,12.72874153]
[1770148800422,0.00684759,2208.6,2207.8,0.001]
[1770148800423,0.00684759,2208.0,2207.8,0.001]
[1770148800732,0.67684759,2208.4,2207.8,0.001]
[1770148801029,0.00684759,2208.2,2207.8,0.001]
[1770148801232,0.00684759,2208.1,2207.8,0.001]
[1770148801383,0.00684759,2208.6,2207.8,0.001]
[1770148801587,0.67,2208.6,2207.8,0.001]
[1770148801810,0.67684759,2208.6,2207.9,0.001]
[1770148802014,0.00684759,2208.4,2207.9,0.001]
[1770148802218,0.00684759,2208.3,2207.9,0.001]
[1770148802438,0.00684759,2209.1,2207.9,12.73074153]
[1770148802439,0.00684759,2209.0,2207.9,12.73074153]
[1770148802586,0.00684759,2209.0,2208.1,12.72974153]
[1770148803122,0.00684759,2209.0,2207.9,0.001]
[1770148803123,0.00684759,2208.1,2207.9,0.001]
[1770148803337,0.00684759,2208.5,2207.3,12.73074153]
[1770148803338,0.00684759,2209.0,2207.3,12.73074153]
[1770148803488,0.00684759,2209.5,2207.7,13.91134844]
[1770148803821,0.00684759,2208.9,2207.9,12.73024153]
[1770148804007,0.00684759,2208.4,2207.5,12.73124153]
[1770148804320,0.669,2208.8,2207.7,12.73024153]
[1770148804492,0.67584759,2208.8,2207.7,12.73024153]
[1770148804682,0.669,2208.8,2207.8,13.67828568]
[1770148804889,0.669,2208.8,2207.5,0.001]
[1770148804890,0.669,2208.8,2207.9,14.0980701]
[1770148805088,0.00684759,2209.3,2208.1,12.73024153]
[1770148805283,0.00684759,2209.2,2208.1,12.73024153]
[1770148805489,0.0011,2209.6,2208.6,12.73024153]
[1770148805716,0.0011,2209.6,2208.7,15.06632688]
[1770148805925,0.0011,2209.6,2208.7,14.12137637]
[1770148805926,0.00794759,2209.6,2208.7,14.12137637]
[1770148806252,0.00794759,2209.8,2208.9,12.73024153]
[1770148806253,0.0011,2209.8,2208.9,12.73024153]
[1770148806530,0.00684759,2210.1,2209.1,12.72969153]
[1770148806824,0.00684759,2210.1,2208.7,15.30138328]
[1770148806825,0.00684759,2209.8,2208.7,15.30138328]
[1770148807027,0.00684759,2209.8,2208.8,0.94270489]
[1770148807325,0.00684759,2210.2,2208.9,14.85295333]
[1770148807549,0.00684759,2210.2,2209.0,0.94270489]
[1770148807550,0.00684759,2210.0,2209.0,0.94270489]
[1770148807747,0.00684759,2209.8,2209.0,2.58620799]
[1770148807916,0.00684759,2209.8,2208.4,13.91024844]
[1770148807917,0.00684759,2209.3,2208.4,13.91024844]
[1770148808115,0.00684759,2209.7,2208.6,12.72914153]
[1770148808316,0.00684759,2209.7,2208.7,13.6760008]
[1770148808559,0.00684759,2209.2,2208.3,13.91024844]
[1770148808851,0.00684759,2209.2,2208.3,14.27837414]
[1770148809015,0.00684759,2209.3,2208.4,0.94731939]
[1770148809221,0.00684759,2209.2,2208.3,14.27837414]
[1770148809427,0.00684759,2209.2,2208.4,0.94764355]
[1770148809719,0.00684759,2209.2,2208.3,14.27837414]
[1770148809932,0.00684759,2209.8,2208.4,15.10431479]
[1770148810118,0.00684759,2209.8,2208.5,14.85758429]
[1770148810317,0.00684759,2209.8,2208.4,2.55983902]
[1770148810318,0.00684759,2209.8,2208.6,15.98951209]
[1770148810545,0.00684759,2209.9,2208.7,13.67647738]
[1770148810845,0.00684759,2209.9,2208.8,13.67647738]
[1770148811030,0.00684759,2209.9,2208.9,2.31498359]
[1770148811261,0.00684759,2210.2,2209.0,0.94474022]
[1770148811466,0.00684759,2210.6,2208.9,1.36764774]
[1770148811467,0.0011,2210.7,2209.6,12.72914153]
[1770148811617,0.0011,2210.7,2209.1,1.89374022]
[1770148811618,0.0011,2210.7,2209.0,1.18110691]
[1770148811619,0.00684759,2209.6,2209.0,1.18110691]
[1770148811958,0.00684759,2209.6,2208.2,3.76147651]
[1770148811959,0.00684759,2208.8,2208.2,1.18110691]
[1770148812123,0.00684759,2208.7,2207.9,13.91024844]
[1770148812334,0.00684759,2209.0,2207.9,15.45948105]
[1770148812542,0.67284759,2209.6,2208.2,1.18110691]
[1770148812740,0.00684759,2209.6,2208.2,12.72914153]
[1770148812941,0.00684759,2209.2,2208.2,1.18110691]
[1770148813155,0.00684759,2209.2,2207.9,2.73033952]
[1770148813156,0.00684759,2208.7,2207.9,2.73033952]
[1770148813469,0.00684759,2209.0,2208.0,0.43124172]
[1770148813748,0.00684759,2209.0,2207.9,14.27837414]
[1770148813954,0.00684759,2208.7,2207.9,12.72914153]
[1770148814252,0.00684759,2209.1,2207.9,12.72914153]
[1770148814253,0.5,2209.2,2208.1,12.72914153]
[1770148814431,0.5,2209.2,2209.0,0.001]
[1770148815050,0.5,2209.2,2208.1,13.67814153]
[1770148815051,0.00684759,2209.1,2208.1,13.67814153]
[1770148815257,0.00684759,2208.9,2208.1,13.67814153]
[1770148815578,0.00684759,2208.9,2208.1,0.001]
[1770148815579,0.00684759,2208.6,2208.1,0.001]
[1770148816343,0.00684759,2208.5,2208.1,0.001]
[1770148816543,0.00684759,2208.2,2208.1,0.001]
[1770148816871,0.00684759,2209.1,2208.1,0.001]
[1770148817058,0.00684759,2209.1,2208.1,12.73064153]
[1770148817257,0.00684759,2209.1,2208.1,14.00370568]
[1770148817747,0.5,2209.2,2208.3,12.72964153]
[1770148818168,0.00684759,2209.1,2208.3,12.72964153]
[1770148818342,0.00684759,2208.7,2208.2,1.18216271]
[1770148818549,0.00684759,2208.3,2207.5,1.18316271]
[1770148818743,0.00684759,2208.4,2207.6,1.18216271]
[1770148819052,0.00684759,2208.4,2207.5,14.27980452]
[1770148819053,0.00684759,2208.7,2207.8,1.18216271]